[Event "Live Chess"]
[Site "Chess.com"]
[Date "2023.05.21"]
[Round "-"]
[White "gmnorfolk"]
[Black "nigelst"]
[Result "1-0"]
[WhiteElo "2124"]
[BlackElo "1711"]
[TimeControl "300"]
[EndTime "3:22:22 PDT"]
[Termination "gmnorfolk won by checkmate"]

1. d4 {[%clk 0:04:58.2]} 1... Nf6 {[%clk 0:04:57.2]} 2. c4 {[%clk 0:04:57.3]}
2... e6 {[%clk 0:04:56.4]} 3. Nc3 {[%clk 0:04:56.4]} 3... Bb4 {[%clk 0:04:55.1]}
4. f3 {[%clk 0:04:55.4]} 4... Bxc3+ {[%clk 0:04:53.2]} 5. bxc3 {[%clk 0:04:54]}
5... d6 {[%clk 0:04:51.3]} 6. e4 {[%clk 0:04:53.5]} 6... Nbd7 {[%clk 0:04:48.1]}
7. Nh3 {[%clk 0:04:51.5]} 7... e5 {[%clk 0:04:46.9]} 8. Nf2 {[%clk 0:04:51.1]}
8... O-O {[%clk 0:04:44.2]} 9. Bd3 {[%clk 0:04:49.2]} 9... c6 {[%clk 0:04:42.3]}
10. O-O {[%clk 0:04:46.9]} 10... c5 {[%clk 0:04:40.8]} 11. Be3 {[%clk
0:04:42.9]} 11... b6 {[%clk 0:04:36.1]} 12. Qd2 {[%clk 0:04:39.6]} 12... h6
{[%clk 0:04:33]} 13. Rae1 {[%clk 0:04:34.2]} 13... Ba6 {[%clk 0:04:24.6]} 14. d5
{[%clk 0:04:31.1]} 14... Rb8 {[%clk 0:04:20.2]} 15. a4 {[%clk 0:04:27]} 15...
Nh5 {[%clk 0:04:02.1]} 16. g4 {[%clk 0:04:24.8]} 16... Nhf6 {[%clk 0:03:56.5]}
17. Kh1 {[%clk 0:04:21.4]} 17... Re8 {[%clk 0:03:50.7]} 18. Rg1 {[%clk 0:04:18]}
18... Nf8 {[%clk 0:03:48.8]} 19. g5 {[%clk 0:04:15.3]} 19... hxg5 {[%clk
0:03:45.3]} 20. Bxg5 {[%clk 0:04:14.2]} 20... N8h7 {[%clk 0:03:42.8]} 21. Bh6
{[%clk 0:04:11.5]} 21... g6 {[%clk 0:03:34.2]} 22. Rg2 {[%clk 0:04:05.1]} 22...
Qd7 {[%clk 0:03:32]} 23. Reg1 {[%clk 0:04:03.4]} 23... Nh5 {[%clk 0:03:24.2]}
24. Ng4 {[%clk 0:03:56.6]} 24... Qe7 {[%clk 0:03:04]} 25. Be3 {[%clk 0:03:52.5]}
25... Bc8 {[%clk 0:02:57.8]} 26. Nh6+ {[%clk 0:03:48.9]} 26... Kh8 {[%clk
0:02:44]} 27. Ng4 {[%clk 0:03:18.2]} 27... Bxg4 {[%clk 0:02:36]} 28. fxg4 {[%clk
0:03:14.9]} 28... N5f6 {[%clk 0:02:31.7]} 29. Rf1 {[%clk 0:03:09]} 29... Nd7
{[%clk 0:02:24.2]} 30. g5 {[%clk 0:03:01.6]} 30... Ndf8 {[%clk 0:02:19.3]} 31.
Rgf2 {[%clk 0:02:55.1]} 31... Kg7 {[%clk 0:02:07]} 32. Rf6 {[%clk 0:02:53]}
32... Rb7 {[%clk 0:02:01.5]} 33. Qf2 {[%clk 0:02:50.6]} 33... Qd7 {[%clk
0:01:48.9]} 34. Qh4 {[%clk 0:02:46.9]} 34... Re7 {[%clk 0:01:21]} 35. Be2 {[%clk
0:02:38.4]} 35... a6 {[%clk 0:01:12.5]} 36. Bd1 {[%clk 0:02:20.5]} 36... b5
{[%clk 0:00:58.8]} 37. axb5 {[%clk 0:02:17.5]} 37... axb5 {[%clk 0:00:57.7]} 38.
Bg4 {[%clk 0:02:11.4]} 38... Qe8 {[%clk 0:00:54.3]} 39. Qh6+ {[%clk 0:02:02.6]}
39... Kg8 {[%clk 0:00:50.9]} 40. h4 {[%clk 0:01:58.6]} 40... bxc4 {[%clk
0:00:40]} 41. h5 {[%clk 0:01:52.3]} 41... Rec7 {[%clk 0:00:21.6]} 42. hxg6
{[%clk 0:01:47]} 42... Nxg6 {[%clk 0:00:19.4]} 43. Be6 {[%clk 0:01:28.9]} 43...
Re7 {[%clk 0:00:14.6]} 44. Rxg6+ {[%clk 0:01:25]} 44... Kh8 {[%clk 0:00:10.8]}
45. Qg7# {[%clk 0:01:22.1]} 1-0

[Event "Live Chess"]
[Site "Chess.com"]
[Date "2023.05.21"]
[Round "-"]
[White "JamesWallman"]
[Black "OleksiyJr1"]
[Result "1-0"]
[WhiteElo "853"]
[BlackElo "962"]
[TimeControl "300"]
[EndTime "3:22:26 PDT"]
[Termination "JamesWallman won by checkmate"]

1. e4 {[%clk 0:04:56.5]} 1... c5 {[%clk 0:04:58.7]} 2. c3 {[%clk 0:04:52.8]}
2... Nc6 {[%clk 0:04:54.9]} 3. d4 {[%clk 0:04:50.7]} 3... cxd4 {[%clk
0:04:54.5]} 4. cxd4 {[%clk 0:04:48.6]} 4... d6 {[%clk 0:04:54.1]} 5. Nf3 {[%clk
0:04:46.8]} 5... e5 {[%clk 0:04:53.6]} 6. d5 {[%clk 0:04:44.3]} 6... Nce7 {[%clk
0:04:51.3]} 7. Be2 {[%clk 0:04:37.8]} 7... Nf6 {[%clk 0:04:50.1]} 8. Nc3 {[%clk
0:04:35.8]} 8... Qa5 {[%clk 0:04:46.2]} 9. Bd2 {[%clk 0:04:31.7]} 9... b6 {[%clk
0:04:43]} 10. O-O {[%clk 0:04:26]} 10... Bb7 {[%clk 0:04:21.5]} 11. Rc1 {[%clk
0:04:20.9]} 11... Ba6 {[%clk 0:04:20.3]} 12. Bxa6 {[%clk 0:04:10.4]} 12... Qxa6
{[%clk 0:04:20.2]} 13. Qb3 {[%clk 0:03:50]} 13... Ng6 {[%clk 0:04:00.2]} 14. Nb5
{[%clk 0:03:44.9]} 14... Qb7 {[%clk 0:03:47.6]} 15. Nc7+ {[%clk 0:03:40.7]}
15... Kd7 {[%clk 0:03:45.1]} 16. Nxa8 {[%clk 0:03:36.8]} 16... Ne8 {[%clk
0:03:42.8]} 17. Rc2 {[%clk 0:03:21.3]} 17... Qxa8 {[%clk 0:03:41.4]} 18. Rfc1
{[%clk 0:03:16.8]} 18... Nf6 {[%clk 0:03:28.1]} 19. Qb5+ {[%clk 0:03:10.9]}
19... Ke7 {[%clk 0:03:24.7]} 20. Rc7+ {[%clk 0:03:04.6]} 20... Kd8 {[%clk
0:03:21.9]} 21. Qa6 {[%clk 0:02:40.2]} 21... Be7 {[%clk 0:03:17.3]} 22. Rc8+
{[%clk 0:02:35.2]} 22... Qxc8 {[%clk 0:03:14.8]} 23. Rxc8+ {[%clk 0:02:30.1]}
23... Kd7 {[%clk 0:03:13.7]} 24. Qb7# {[%clk 0:02:18.8]} 1-0

[Event "Live Chess"]
[Site "Chess.com"]
[Date "2023.05.21"]
[Round "-"]
[White "Tiltador"]
[Black "Abde2012"]
[Result "1-0"]
[WhiteElo "865"]
[BlackElo "738"]
[TimeControl "300"]
[EndTime "3:22:30 PDT"]
[Termination "Tiltador won by resignation"]

1. e4 {[%clk 0:04:57.8]} 1... c6 {[%clk 0:04:59.3]} 2. Nf3 {[%clk 0:04:55.1]}
2... d5 {[%clk 0:04:58.7]} 3. exd5 {[%clk 0:04:52.7]} 3... cxd5 {[%clk
0:04:57.4]} 4. Be2 {[%clk 0:04:51.7]} 4... Bg4 {[%clk 0:04:55.9]} 5. O-O {[%clk
0:04:50.2]} 5... Nf6 {[%clk 0:04:50.7]} 6. Nd4 {[%clk 0:04:48.9]} 6... e6 {[%clk
0:04:48.7]} 7. Bxg4 {[%clk 0:04:47.5]} 7... Nxg4 {[%clk 0:04:46.4]} 8. Qxg4
{[%clk 0:04:46.1]} 8... Nd7 {[%clk 0:04:42.5]} 9. c3 {[%clk 0:04:43.4]} 9... Ne5
{[%clk 0:04:41.8]} 10. Qe2 {[%clk 0:04:39.9]} 10... Qg5 {[%clk 0:04:33.4]} 11.
d3 {[%clk 0:04:33.3]} 11... Qg6 {[%clk 0:04:29.8]} 12. Qxe5 {[%clk 0:04:24.4]}
1-0

[Event "Live Chess"]
[Site "Chess.com"]
[Date "2023.05.21"]
[Round "-"]
[White "LiamBellwood"]
[Black "Crowded_House"]
[Result "1-0"]
[WhiteElo "1936"]
[BlackElo "1638"]
[TimeControl "300"]
[EndTime "3:22:34 PDT"]
[Termination "LiamBellwood won by resignation"]

1. d4 {[%clk 0:04:59.3]} 1... e6 {[%clk 0:04:58.7]} 2. Nc3 {[%clk 0:04:59.2]}
2... d5 {[%clk 0:04:58.2]} 3. Bf4 {[%clk 0:04:58.8]} 3... Bd6 {[%clk 0:04:56.1]}
4. Bxd6 {[%clk 0:04:56.2]} 4... Qxd6 {[%clk 0:04:55.7]} 5. e4 {[%clk 0:04:56.1]}
5... dxe4 {[%clk 0:04:52.4]} 6. Nxe4 {[%clk 0:04:56]} 6... Qb4+ {[%clk 0:04:50]}
7. c3 {[%clk 0:04:54.7]} 7... Qxb2 {[%clk 0:04:48.5]} 8. Bd3 {[%clk 0:04:54.6]}
8... Qxc3+ {[%clk 0:04:46]} 9. Nxc3 {[%clk 0:04:45.5]} 9... Bd7 {[%clk
0:04:36.5]} 10. Nf3 {[%clk 0:04:41.6]} 10... Nf6 {[%clk 0:04:29.8]} 11. O-O
{[%clk 0:04:39.9]} 11... O-O {[%clk 0:04:29.3]} 12. Ne5 {[%clk 0:04:39.2]} 12...
Nc6 {[%clk 0:04:28.8]} 13. Nxd7 {[%clk 0:04:38.3]} 13... Nxd7 {[%clk 0:04:27.3]}
1-0

[Event "Live Chess"]
[Site "Chess.com"]
[Date "2023.05.21"]
[Round "-"]
[White "chessfiction"]
[Black "ItsNot_Jasper"]
[Result "1-0"]
[WhiteElo "2319"]
[BlackElo "1373"]
[TimeControl "300"]
[EndTime "3:22:49 PDT"]
[Termination "chessfiction won by resignation"]

1. e4 {[%clk 0:04:59.8]} 1... c6 {[%clk 0:04:58.9]} 2. d4 {[%clk 0:04:59.7]}
2... d5 {[%clk 0:04:58.4]} 3. Nc3 {[%clk 0:04:59]} 3... dxe4 {[%clk 0:04:57.2]}
4. f3 {[%clk 0:04:58.2]} 4... Bf5 {[%clk 0:04:57.1]} 5. fxe4 {[%clk 0:04:57.1]}
5... Bg6 {[%clk 0:04:56.3]} 6. Nf3 {[%clk 0:04:57]} 6... Nf6 {[%clk 0:04:51.7]}
7. Bc4 {[%clk 0:04:55.7]} 7... b5 {[%clk 0:04:50.1]} 8. Bb3 {[%clk 0:04:54.3]}
8... a5 {[%clk 0:04:49]} 9. a4 {[%clk 0:04:51.9]} 9... b4 {[%clk 0:04:46.9]} 10.
e5 {[%clk 0:04:49.1]} 10... bxc3 {[%clk 0:04:40.6]} 11. exf6 {[%clk 0:04:47.9]}
11... cxb2 {[%clk 0:04:40.1]} 12. Bxb2 {[%clk 0:04:45.1]} 12... exf6 {[%clk
0:04:38.7]} 13. O-O {[%clk 0:04:44.2]} 13... Be7 {[%clk 0:04:37.2]} 14. Re1
{[%clk 0:04:36.1]} 14... O-O {[%clk 0:04:35.7]} 15. Qe2 {[%clk 0:04:35.1]} 15...
Re8 {[%clk 0:04:29.9]} 16. h4 {[%clk 0:04:27.5]} 16... Nd7 {[%clk 0:04:25.6]}
17. Qf2 {[%clk 0:04:08.5]} 17... Bb4 {[%clk 0:03:56.4]} 18. c3 {[%clk
0:04:04.8]} 18... Rxe1+ {[%clk 0:03:51.9]} 19. Rxe1 {[%clk 0:04:02.9]} 19... Bd6
{[%clk 0:03:51.6]} 20. Bc1 {[%clk 0:03:54]} 20... Qc7 {[%clk 0:03:46.4]} 21. Qa2
{[%clk 0:03:51.2]} 21... Rd8 {[%clk 0:03:19.9]} 22. Re2 {[%clk 0:03:21.7]} 22...
c5 {[%clk 0:03:06]} 23. Ba3 {[%clk 0:03:11.6]} 23... cxd4 {[%clk 0:03:00]} 24.
Nxd4 {[%clk 0:02:58.4]} 24... Bxa3 {[%clk 0:02:46.8]} 25. Qxa3 {[%clk
0:02:56.2]} 25... Kh8 {[%clk 0:02:40.5]} 26. Qe7 {[%clk 0:02:51.8]} 26... Rg8
{[%clk 0:02:27.6]} 27. Bxf7 {[%clk 0:02:47]} 27... Bxf7 {[%clk 0:02:25]} 28.
Qxf7 {[%clk 0:02:46.9]} 28... Qxc3 {[%clk 0:01:45.3]} 29. Qxd7 {[%clk
0:02:39.2]} 29... Qc1+ {[%clk 0:01:44.1]} 30. Kh2 {[%clk 0:02:36.8]} 30... Qf4+
{[%clk 0:01:43.1]} 31. g3 {[%clk 0:02:35.4]} 31... Qf1 {[%clk 0:01:37.9]} 32.
Qg4 {[%clk 0:02:08.5]} 32... Qa1 {[%clk 0:01:21.4]} 33. h5 {[%clk 0:02:06.7]}
33... Qxa4 {[%clk 0:01:19.3]} 34. h6 {[%clk 0:01:58.9]} 34... g6 {[%clk
0:01:06.7]} 35. Qf4 {[%clk 0:01:55.7]} 35... Rf8 {[%clk 0:00:55.9]} 36. Qc7
{[%clk 0:01:43.3]} 36... Rg8 {[%clk 0:00:40.6]} 37. Qd6 {[%clk 0:01:34]} 1-0

[Event "Live Chess"]
[Site "Chess.com"]
[Date "2023.05.21"]
[Round "-"]
[White "CheckThis4"]
[Black "chessleanstrategist"]
[Result "1-0"]
[WhiteElo "2496"]
[BlackElo "430"]
[TimeControl "300"]
[EndTime "3:23:03 PDT"]
[Termination "CheckThis4 won by resignation"]

1. d4 {[%clk 0:04:58.9]} 1... Nf6 {[%clk 0:04:57.4]} 2. Nc3 {[%clk 0:04:57.7]}
2... g6 {[%clk 0:04:54.3]} 3. e4 {[%clk 0:04:56.8]} 3... d6 {[%clk 0:04:52.4]}
4. Be3 {[%clk 0:04:55]} 4... Bg7 {[%clk 0:04:51]} 5. Qd2 {[%clk 0:04:54.5]} 5...
c5 {[%clk 0:04:41.8]} 6. dxc5 {[%clk 0:04:51.6]} 6... dxc5 {[%clk 0:04:40.9]} 7.
Qxd8+ {[%clk 0:04:49.8]} 7... Kxd8 {[%clk 0:04:40.6]} 8. O-O-O+ {[%clk
0:04:47.2]} 8... Nbd7 {[%clk 0:04:24.8]} 9. Bxc5 {[%clk 0:04:45.9]} 9... b6
{[%clk 0:04:18.5]} 10. Bd4 {[%clk 0:04:43.7]} 10... e5 {[%clk 0:04:16.7]} 11.
Bxe5 {[%clk 0:04:40.5]} 11... Ke7 {[%clk 0:03:56.2]} 12. Bd6+ {[%clk 0:04:37.3]}
12... Ke8 {[%clk 0:03:38.5]} 13. Bb5 {[%clk 0:04:35.4]} 13... a6 {[%clk
0:03:22.4]} 14. Bc6 {[%clk 0:04:34.1]} 14... Ra7 {[%clk 0:03:16.5]} 15. Nh3
{[%clk 0:04:31]} 15... Bb7 {[%clk 0:03:14]} 16. Bxb7 {[%clk 0:04:17.6]} 16...
Rxb7 {[%clk 0:03:11.8]} 17. Rhe1 {[%clk 0:04:13]} 17... Bf8 {[%clk 0:03:06]} 18.
e5 {[%clk 0:04:11]} 18... Bxd6 {[%clk 0:03:03.7]} 19. exf6+ {[%clk 0:04:08.5]}
19... Be5 {[%clk 0:02:31.8]} 20. f4 {[%clk 0:04:05.2]} 20... Kd8 {[%clk
0:02:17.9]} 21. fxe5 {[%clk 0:04:02.5]} 21... Re8 {[%clk 0:02:17.6]} 22. Ng5
{[%clk 0:03:59.7]} 22... Kc8 {[%clk 0:02:04]} 23. Nxf7 {[%clk 0:03:56.6]} 23...
Nxe5 {[%clk 0:01:58.1]} 24. Nd6+ {[%clk 0:03:54.6]} 1-0

[Event "Live Chess"]
[Site "Chess.com"]
[Date "2023.05.21"]
[Round "-"]
[White "KeithArkell"]
[Black "RedRook90"]
[Result "1-0"]
[WhiteElo "2496"]
[BlackElo "1949"]
[TimeControl "300"]
[EndTime "3:23:10 PDT"]
[Termination "KeithArkell won by resignation"]

1. d4 {[%clk 0:04:57.8]} 1... d5 {[%clk 0:04:58.2]} 2. Nf3 {[%clk 0:04:56.6]}
2... Nf6 {[%clk 0:04:57.6]} 3. c4 {[%clk 0:04:55.9]} 3... e6 {[%clk 0:04:55.9]}
4. cxd5 {[%clk 0:04:55]} 4... exd5 {[%clk 0:04:55.5]} 5. Nc3 {[%clk 0:04:54.3]}
5... Bd6 {[%clk 0:04:53.7]} 6. Bg5 {[%clk 0:04:52.1]} 6... c6 {[%clk 0:04:49.7]}
7. Qc2 {[%clk 0:04:51.1]} 7... O-O {[%clk 0:04:48]} 8. e3 {[%clk 0:04:49.7]}
8... h6 {[%clk 0:04:43.8]} 9. Bh4 {[%clk 0:04:48.6]} 9... Be6 {[%clk 0:04:38.6]}
10. Bd3 {[%clk 0:04:47.4]} 10... Nbd7 {[%clk 0:04:37.2]} 11. Bh7+ {[%clk
0:04:42.8]} 11... Kh8 {[%clk 0:04:33.9]} 12. Bf5 {[%clk 0:04:42]} 12... Bxf5
{[%clk 0:04:23.9]} 13. Qxf5 {[%clk 0:04:40.2]} 13... Qe7 {[%clk 0:04:06.2]} 14.
O-O {[%clk 0:04:38.2]} 14... Rae8 {[%clk 0:04:04.3]} 15. Rab1 {[%clk 0:04:35.8]}
15... Qe6 {[%clk 0:03:58.5]} 16. Qxe6 {[%clk 0:04:34.5]} 16... Rxe6 {[%clk
0:03:58.2]} 17. b4 {[%clk 0:04:33.6]} 17... a6 {[%clk 0:03:50.2]} 18. a4 {[%clk
0:04:32]} 18... Ne4 {[%clk 0:03:49.2]} 19. Nxe4 {[%clk 0:04:29.2]} 19... Rxe4
{[%clk 0:03:48.8]} 20. Bg3 {[%clk 0:04:27.7]} 20... Bxg3 {[%clk 0:03:42.8]} 21.
hxg3 {[%clk 0:04:27.6]} 21... Nb6 {[%clk 0:03:42.1]} 22. Nd2 {[%clk 0:04:25.8]}
22... Re7 {[%clk 0:03:34.5]} 23. b5 {[%clk 0:04:25.1]} 23... Nxa4 {[%clk
0:03:28]} 24. bxc6 {[%clk 0:04:23.9]} 24... bxc6 {[%clk 0:03:27]} 25. Ra1 {[%clk
0:04:21.1]} 25... Nc3 {[%clk 0:03:08.7]} 26. Rxa6 {[%clk 0:04:18.6]} 26... Rc7
{[%clk 0:03:07.4]} 27. Nb3 {[%clk 0:04:13.1]} 27... Rb8 {[%clk 0:03:02.7]} 28.
Nc5 {[%clk 0:04:10.2]} 28... Rb2 {[%clk 0:02:54]} 29. Rfa1 {[%clk 0:04:08.3]}
29... f5 {[%clk 0:02:36.7]} 30. Nd3 {[%clk 0:03:57.9]} 30... Ne4 {[%clk
0:02:20]} 31. R6a2 {[%clk 0:03:42.9]} 31... Rxa2 {[%clk 0:02:11.4]} 32. Rxa2
{[%clk 0:03:41.9]} 32... c5 {[%clk 0:02:07.4]} 33. dxc5 {[%clk 0:03:39.5]} 33...
Nxc5 {[%clk 0:02:06]} 34. Nf4 {[%clk 0:03:38]} 34... Ne4 {[%clk 0:01:51.7]} 35.
Nxd5 {[%clk 0:03:34.4]} 35... Rc1+ {[%clk 0:01:51.1]} 36. Kh2 {[%clk 0:03:33.7]}
36... Rf1 {[%clk 0:01:37]} 37. f3 {[%clk 0:03:31.6]} 37... Ng5 {[%clk
0:01:31.9]} 38. Ra4 {[%clk 0:03:12.6]} 38... Rf2 {[%clk 0:01:29.2]} 39. Kg1
{[%clk 0:03:10.2]} 39... Rd2 {[%clk 0:01:26.5]} 40. Ne7 {[%clk 0:03:05.4]} 40...
Rd1+ {[%clk 0:01:20.8]} 41. Kh2 {[%clk 0:03:00.1]} 41... Rd2 {[%clk 0:01:20.3]}
42. Rf4 {[%clk 0:02:56.8]} 42... Rd3 {[%clk 0:01:14.1]} 43. Nxf5 {[%clk
0:02:52.4]} 43... g6 {[%clk 0:01:10.2]} 44. Nxh6 {[%clk 0:02:51.1]} 44... Rxe3
{[%clk 0:01:09.2]} 45. Nf7+ {[%clk 0:02:48.4]} 45... Kg7 {[%clk 0:01:07.3]} 46.
Nxg5 {[%clk 0:02:47]} 1-0

[Event "Live Chess"]
[Site "Chess.com"]
[Date "2023.05.21"]
[Round "-"]
[White "RichardABates"]
[Black "domrobson"]
[Result "1-0"]
[WhiteElo "2154"]
[BlackElo "1699"]
[TimeControl "300"]
[EndTime "3:23:21 PDT"]
[Termination "RichardABates won by resignation"]

1. e4 {[%clk 0:04:56.9]} 1... e5 {[%clk 0:04:59.3]} 2. Nf3 {[%clk 0:04:55.8]}
2... Nc6 {[%clk 0:04:58.2]} 3. Bc4 {[%clk 0:04:54.9]} 3... Nf6 {[%clk
0:04:57.8]} 4. Ng5 {[%clk 0:04:53.3]} 4... d5 {[%clk 0:04:56.6]} 5. exd5 {[%clk
0:04:52.1]} 5... Na5 {[%clk 0:04:55.8]} 6. Bb5+ {[%clk 0:04:36.8]} 6... Bd7
{[%clk 0:04:53.2]} 7. Qe2 {[%clk 0:04:26.8]} 7... Bd6 {[%clk 0:04:49.8]} 8.
Bxd7+ {[%clk 0:04:15.1]} 8... Qxd7 {[%clk 0:04:38]} 9. b4 {[%clk 0:04:09]} 9...
Bxb4 {[%clk 0:04:23.3]} 10. Qxe5+ {[%clk 0:04:07.6]} 10... Qe7 {[%clk
0:04:22.1]} 11. Qxe7+ {[%clk 0:04:05.3]} 11... Bxe7 {[%clk 0:04:20.5]} 12. O-O
{[%clk 0:04:02.4]} 12... Nxd5 {[%clk 0:04:18.3]} 13. d3 {[%clk 0:03:57.9]} 13...
O-O {[%clk 0:04:14.9]} 14. Re1 {[%clk 0:03:42.4]} 14... Bf6 {[%clk 0:04:12.5]}
15. c3 {[%clk 0:03:28.3]} 15... Nxc3 {[%clk 0:04:04.9]} 16. Bb2 {[%clk
0:03:27.1]} 16... Bxg5 {[%clk 0:03:57.1]} 17. Nxc3 {[%clk 0:03:23]} 17... Nc6
{[%clk 0:03:54.2]} 18. Nd5 {[%clk 0:03:14.3]} 18... Rad8 {[%clk 0:03:47.4]} 19.
Nxc7 {[%clk 0:03:09.2]} 19... Rxd3 {[%clk 0:03:45.9]} 20. Rad1 {[%clk
0:03:04.7]} 20... Rxd1 {[%clk 0:03:32.5]} 21. Rxd1 {[%clk 0:03:03.4]} 21... Rd8
{[%clk 0:03:29.5]} 22. Re1 {[%clk 0:02:27.1]} 22... a6 {[%clk 0:03:25.2]} 23. g3
{[%clk 0:02:25.1]} 23... h6 {[%clk 0:03:21.1]} 24. Ne8 {[%clk 0:02:20.8]} 24...
Be7 {[%clk 0:03:09]} 25. Nxg7 {[%clk 0:02:16.6]} 25... Bb4 {[%clk 0:03:01.9]}
26. Re4 {[%clk 0:02:09.6]} 26... Rd2 {[%clk 0:02:57.4]} 27. Bf6 {[%clk
0:01:53.7]} 27... Rxa2 {[%clk 0:02:46.7]} 28. Nf5 {[%clk 0:01:46.9]} 28... Bc5
{[%clk 0:02:38.5]} 29. Nxh6+ {[%clk 0:01:20.5]} 29... Kh7 {[%clk 0:02:37]} 30.
Ng4 {[%clk 0:01:18.6]} 30... Kg6 {[%clk 0:02:29.8]} 31. Rf4 {[%clk 0:01:11.2]}
31... Bd6 {[%clk 0:02:20.3]} 32. Rf3 {[%clk 0:01:07.4]} 32... b5 {[%clk
0:02:13.7]} 33. h4 {[%clk 0:01:04.2]} 33... Ra3 {[%clk 0:02:07.9]} 34. Bc3
{[%clk 0:00:57.5]} 34... b4 {[%clk 0:02:04.2]} 35. Rf6+ {[%clk 0:00:56]} 35...
Kh5 {[%clk 0:01:54.1]} 36. Bb2 {[%clk 0:00:51.5]} 36... Rd3 {[%clk 0:01:48.1]}
37. f3 {[%clk 0:00:41.1]} 37... Rxf3 {[%clk 0:01:31.4]} 38. Rxf3 {[%clk
0:00:37.4]} 38... Kxg4 {[%clk 0:01:31]} 39. Kg2 {[%clk 0:00:36.2]} 39... f5
{[%clk 0:01:25.9]} 40. h5 {[%clk 0:00:30.4]} 40... Ne5 {[%clk 0:01:20.5]} 41.
Rf4+ {[%clk 0:00:28.7]} 41... Kg5 {[%clk 0:01:18.1]} 42. h6 {[%clk 0:00:26.1]}
42... Nd3 {[%clk 0:01:13.2]} 43. h7 {[%clk 0:00:23.1]} 43... Bxf4 {[%clk
0:00:45.7]} 44. h8=Q {[%clk 0:00:21.2]} 44... Nxb2 {[%clk 0:00:38.4]} 45. gxf4+
{[%clk 0:00:20.3]} 45... Kxf4 {[%clk 0:00:37.1]} 46. Qxb2 {[%clk 0:00:20.2]} 1-0

[Event "Live Chess"]
[Site "Chess.com"]
[Date "2023.05.21"]
[Round "-"]
[White "NicuMarBo"]
[Black "JanMur7"]
[Result "0-1"]
[WhiteElo "1038"]
[BlackElo "1955"]
[TimeControl "300"]
[EndTime "3:23:27 PDT"]
[Termination "JanMur7 won by resignation"]

1. d4 {[%clk 0:04:58.4]} 1... Nf6 {[%clk 0:04:59]} 2. Nf3 {[%clk 0:04:57]} 2...
e6 {[%clk 0:04:58.3]} 3. a3 {[%clk 0:04:54.7]} 3... Be7 {[%clk 0:04:57.5]} 4. c4
{[%clk 0:04:53.6]} 4... O-O {[%clk 0:04:57]} 5. Nc3 {[%clk 0:04:52.7]} 5... d5
{[%clk 0:04:56.5]} 6. e4 {[%clk 0:04:40.5]} 6... dxe4 {[%clk 0:04:53.9]} 7. Ne5
{[%clk 0:04:37.3]} 7... Nbd7 {[%clk 0:04:50.6]} 8. Be2 {[%clk 0:04:08.8]} 8...
Nxe5 {[%clk 0:04:48.5]} 9. dxe5 {[%clk 0:04:05.6]} 9... Qxd1+ {[%clk 0:04:48.4]}
10. Bxd1 {[%clk 0:03:56.3]} 10... Nd7 {[%clk 0:04:48.3]} 11. Bf4 {[%clk
0:03:49.4]} 11... Nc5 {[%clk 0:04:46.9]} 12. Bc2 {[%clk 0:03:46.9]} 12... Nd3+
{[%clk 0:04:41.6]} 13. Bxd3 {[%clk 0:03:38.6]} 13... exd3 {[%clk 0:04:41.5]} 14.
O-O {[%clk 0:03:37.2]} 14... b6 {[%clk 0:04:38.4]} 15. Rad1 {[%clk 0:03:23.6]}
15... Ba6 {[%clk 0:04:27]} 16. b3 {[%clk 0:03:09.6]} 16... Rad8 {[%clk
0:04:21.5]} 17. Rfe1 {[%clk 0:02:27.8]} 17... Bxa3 {[%clk 0:04:18.6]} 18. Re3
{[%clk 0:02:24]} 18... Bb4 {[%clk 0:04:11.4]} 19. Rexd3 {[%clk 0:02:17.1]} 19...
Rxd3 {[%clk 0:04:08.1]} 20. Rxd3 {[%clk 0:02:15.6]} 20... Bxc3 {[%clk
0:04:06.6]} 21. Rxc3 {[%clk 0:02:14.6]} 21... Rd8 {[%clk 0:04:05.4]} 22. h3
{[%clk 0:01:53.9]} 22... h6 {[%clk 0:03:58]} 23. g4 {[%clk 0:01:47.4]} 23... Bb7
{[%clk 0:03:52.8]} 24. Kh2 {[%clk 0:01:34.6]} 24... Rd1 {[%clk 0:03:49]} 25. Kg3
{[%clk 0:01:28.3]} 25... g5 {[%clk 0:03:47.4]} 26. Rc1 {[%clk 0:00:35.4]} 26...
gxf4+ {[%clk 0:03:43.7]} 27. Kxf4 {[%clk 0:00:31.5]} 27... Rxc1 {[%clk
0:03:43.6]} 0-1

[Event "Live Chess"]
[Site "Chess.com"]
[Date "2023.05.21"]
[Round "-"]
[White "WelshTiger"]
[Black "Keithdfg"]
[Result "0-1"]
[WhiteElo "2332"]
[BlackElo "1770"]
[TimeControl "300"]
[EndTime "3:23:29 PDT"]
[Termination "Keithdfg won by checkmate"]

1. e4 {[%clk 0:04:59.3]} 1... d6 {[%clk 0:04:59]} 2. d4 {[%clk 0:04:58]} 2...
Nf6 {[%clk 0:04:58.9]} 3. Nc3 {[%clk 0:04:57.1]} 3... Nbd7 {[%clk 0:04:56.8]} 4.
Nf3 {[%clk 0:04:55.6]} 4... e5 {[%clk 0:04:56.7]} 5. g4 {[%clk 0:04:54.1]} 5...
Nxg4 {[%clk 0:04:53.7]} 6. Rg1 {[%clk 0:04:52.9]} 6... Ngf6 {[%clk 0:04:52.8]}
7. Bc4 {[%clk 0:04:49]} 7... h6 {[%clk 0:04:51.2]} 8. Be3 {[%clk 0:04:38.1]}
8... c6 {[%clk 0:04:48.1]} 9. dxe5 {[%clk 0:04:37.5]} 9... dxe5 {[%clk
0:04:42.3]} 10. Qd3 {[%clk 0:04:35.8]} 10... b5 {[%clk 0:04:26.7]} 11. Bb3
{[%clk 0:04:34.4]} 11... a5 {[%clk 0:04:21.7]} 12. a4 {[%clk 0:04:31.3]} 12...
b4 {[%clk 0:04:19.5]} 13. Ne2 {[%clk 0:04:30]} 13... Qc7 {[%clk 0:04:06.2]} 14.
Qc4 {[%clk 0:04:26.5]} 14... Nc5 {[%clk 0:03:50.9]} 15. Bxc5 {[%clk 0:04:19.3]}
15... Be6 {[%clk 0:03:49.2]} 16. Qd3 {[%clk 0:03:54.8]} 16... Bxc5 {[%clk
0:03:46.7]} 17. Rxg7 {[%clk 0:03:52.5]} 17... Kf8 {[%clk 0:03:33.9]} 18. Rg1
{[%clk 0:03:44.3]} 18... Rd8 {[%clk 0:03:31.8]} 19. Qa6 {[%clk 0:03:37.7]} 19...
Nxe4 {[%clk 0:03:22.8]} 20. Rg2 {[%clk 0:03:33.3]} 20... Bxb3 {[%clk 0:03:17.7]}
21. cxb3 {[%clk 0:03:32.1]} 21... Qd6 {[%clk 0:02:47.6]} 22. Qc4 {[%clk
0:03:30.3]} 22... Nd2 {[%clk 0:02:42.8]} 23. Rg8+ {[%clk 0:03:11.4]} 23... Rxg8
{[%clk 0:02:39.5]} 24. Nxd2 {[%clk 0:03:10.5]} 24... Qxd2+ {[%clk 0:02:34.8]}
25. Kf1 {[%clk 0:03:10.1]} 25... Qd1+ {[%clk 0:02:30.1]} 26. Rxd1 {[%clk
0:03:08.7]} 26... Rxd1# {[%clk 0:02:28.7]} 0-1